bitfinex-derivatives/quotes_SOLF0:USTF0_20250609
["timestamp","ask_amount","ask_price","bid_price","bid_amount"]
[1749427732140,0.04202745,152.48,152.44,0.04462595]
[1749427732344,7.10393448,152.48,152.44,0.04462595]
[1749427732841,6.5562,152.45,152.44,0.04462595]
[1749427734341,6.5559,152.46,152.44,0.04462595]
[1749427734739,2.31912745,152.48,152.44,0.04462595]
[1749427734932,0.04202745,152.48,152.44,35.68462595]
[1749427735343,0.04202745,152.48,152.44,42.24112595]
[1749427736243,6.59722745,152.48,152.44,42.24112595]
[1749427736840,0.04202745,152.48,152.45,7.06190703]
[1749427737642,0.04202745,152.48,152.44,42.24082595]
[1749427738346,6.59702745,152.48,152.44,42.24082595]
[1749427739247,0.04202745,152.48,152.45,6.5562]
[1749427739444,0.04202745,152.48,152.45,13.61810703]
[1749427739647,0.04202745,152.48,152.45,7.06190703]
[1749427740250,0.04202745,152.48,152.45,13.61800703]
[1749427740450,6.59702745,152.48,152.45,7.06190703]
[1749427741054,0.04202745,152.48,152.45,7.06190703]
[1749427742053,0.04202745,152.48,152.44,35.68462595]
[1749427742356,0.04202745,152.48,152.44,42.24102595]
[1749427742555,0.04202745,152.48,152.45,7.06190703]
[1749427742752,2.2771,152.55,152.47,7.06190703]
[1749427742957,6.5525,152.54,152.5,6.5538]
[1749427743258,2.2612,152.58,152.51,7.06190703]
[1749427743758,0.04647743,152.56,152.53,0.04389265]
[1749427744653,6.59817743,152.56,152.53,0.04389265]
[1749427745359,6.552,152.55,152.53,0.04389265]
[1749427745660,0.04647743,152.56,152.53,0.04389265]
[1749427746260,0.04647743,152.56,152.47,377.76]
[1749427746261,7.06190703,152.54,152.47,35.6]
[1749427746562,7.06190703,152.52,152.47,35.6]
[1749427746964,2.1462,152.51,152.44,35.6]
[1749427747160,2.1462,152.51,152.42,6.5574]
[1749427747363,6.5561,152.46,152.45,0.05036338]
[1749427751058,6.5575,152.42,152.41,35.6]
[1749427751255,7.06190703,152.44,152.37,35.6]
[1749427751459,7.06190703,152.42,152.37,35.6]
[1749427751758,7.06190703,152.4,152.34,35.62]
[1749427752169,6.5601,152.36,152.35,0.04557981]
[1749427752765,6.5611,152.34,152.26,4.3701]
[1749427752956,6.5611,152.34,152.28,7.06190703]
[1749427753669,6.5607,152.35,152.3,6.5626]
[1749427753872,0.04443481,152.34,152.31,0.0499375]
[1749427754463,6.60543481,152.34,152.31,0.0499375]
[1749427754959,0.04443481,152.34,152.31,0.0499375]
[1749427755259,0.04443481,152.34,152.31,35.6699375]
[1749427756864,6.60553481,152.34,152.31,35.6699375]
[1749427759162,0.04443481,152.34,152.31,35.6699375]
[1749427759972,0.04443481,152.34,152.31,42.2320375]
[1749427760874,0.04443481,152.34,152.31,0.0499375]
[1749427761368,6.5618,152.32,152.31,0.0499375]
[1749427763169,6.5629,152.3,152.27,35.64]
[1749427763372,4.5384,152.37,152.28,35.64]
[1749427763573,4.5384,152.37,152.29,35.64]
[1749427763875,4.5384,152.37,152.28,35.64]
[1749427764068,6.60843343,152.34,152.31,0.04449987]
[1749427764469,0.04713343,152.34,152.31,7.1064069]
[1749427764675,2.1332,152.41,152.33,7.06190703]
[1749427764976,165.7497629,152.43,152.36,7.06190703]
[1749427765168,165.7497629,152.43,152.36,42.70190703]
[1749427765373,130.1097629,152.43,152.36,42.70190703]
[1749427765771,0.0430208,152.41,152.38,0.0495765]
[1749427766374,6.5588,152.39,152.38,0.0495765]
[1749427768982,6.5588,152.39,152.38,7.65e-05]
[1749427769177,6.5613,152.34,152.3,42.2023]
[1749427770083,6.5613,152.34,152.31,6.5621]
[1749427770084,0.04599443,152.34,152.31,6.5621]
[1749427770386,0.04599443,152.34,152.31,7.06190703]
[1749427772183,0.04599443,152.34,152.32,6.5616]
[1749427772574,0.04599443,152.34,152.31,7.06190703]
[1749427772983,0.04599443,152.34,152.31,13.62400703]
[1749427774086,6.60699443,152.34,152.31,13.62400703]
[1749427774277,0.04599443,152.34,152.31,13.62400703]
[1749427775187,0.04599443,152.34,152.3,42.24712927]
[1749427776793,6.5615,152.33,152.3,42.24712927]
[1749427776983,0.04599443,152.34,152.3,42.24712927]
[1749427777479,6.60719443,152.34,152.3,42.24712927]
[1749427778392,0.04599443,152.34,152.3,35.68442927]
[1749427778979,0.04599443,152.34,152.31,6.562]
[1749427779184,6.60699443,152.34,152.31,6.562]
[1749427779385,6.60699443,152.34,152.3,35.68442927]
[1749427779692,6.60699443,152.34,152.31,6.5621]
[1749427780887,0.04599443,152.34,152.3,35.68442927]
[1749427781288,7.06190703,152.33,152.3,0.04442927]
[1749427781693,6.5622,152.31,152.3,0.04442927]
[1749427785790,7.06190703,152.31,152.24,35.44]
[1749427786292,4.4874,152.33,152.24,42.50190703]
[1749427786493,35.44,152.34,152.26,7.06190703]
[1749427786689,6.60781708,152.32,152.28,6.60513883]
[1749427786895,0.04561708,152.32,152.28,7.10354586]
[1749427787287,0.04561708,152.32,152.28,42.54354586]
[1749427787693,0.04561708,152.32,152.29,6.5629]
[1749427787894,0.04561708,152.32,152.28,42.54354586]
[1749427788500,0.04561708,152.32,152.3,6.5625]
[1749427788796,0.04561708,152.32,152.28,42.54354586]
[1749427788997,35.44,152.4,152.31,7.06190703]
[1749427789393,35.44,152.4,152.32,35.44]
[1749427789606,6.5599,152.37,152.32,35.44]
[1749427789793,35.44,152.4,152.32,35.44]
[1749427789994,6.60702619,152.38,152.34,6.60429163]
[1749427790191,0.04742619,152.38,152.34,0.04339163]
[1749427791301,6.60662619,152.38,152.34,6.60419163]
[1749427791501,6.60662619,152.38,152.34,0.04339163]
[1749427792805,6.60662619,152.38,152.35,6.5604]
[1749427794001,0.04742619,152.38,152.34,0.04339163]
[1749427794901,0.04742619,152.38,152.35,7.06190703]
[1749427796004,0.04742619,152.38,152.34,0.04339163]
[1749427796005,0.04742619,152.38,152.37,7.06190703]
[1749427796199,6.05853026,152.43,152.41,6.5579]
[1749427796399,12.61503026,152.45,152.39,7.06190703]
[1749427796594,6.05853026,152.45,152.4,35.44]
[1749427797198,0.04358023,152.44,152.41,0.04516259]
[1749427797804,6.05853026,152.43,152.41,0.04516259]
[1749427797999,6.5575,152.42,152.41,0.04516259]
[1749427801206,12.61603026,152.42,152.41,6.259e-05]
[1749427801401,6.5575,152.42,152.41,6.259e-05]
[1749427801710,12.6607586,152.42,152.41,6.259e-05]
[1749427802905,6.5575,152.42,152.41,6.259e-05]
[1749427803105,0.04358023,152.44,152.41,6.259e-05]
[1749427804110,0.04358023,152.44,152.41,7.06196962]
[1749427805298,0.04358023,152.44,152.41,13.61966962]
[1749427805498,0.04358023,152.44,152.42,35.42]
[1749427805702,6.60028023,152.44,152.42,35.42]
[1749427806011,0.04358023,152.44,152.42,35.42]
[1749427806210,6.5575,152.42,152.41,6.259e-05]
[1749427806910,0.04358023,152.44,152.41,6.259e-05]
[1749427806911,6.5573,152.43,152.41,6.259e-05]
[1749427807507,6.5575,152.42,152.41,6.259e-05]
[1749427808405,11.80264072,152.42,152.41,6.259e-05]
[1749427811321,11.80251121,152.42,152.41,6.259e-05]
[1749427812712,6.5575,152.42,152.41,6.259e-05]
[1749427817211,19.2110826,152.42,152.41,6.259e-05]
[1749427817411,13.1175,152.42,152.41,6.259e-05]
[1749427817817,21.19076652,152.42,152.41,6.259e-05]
[1749427818420,0.49993741,152.37,152.31,35.34]
[1749427818719,7.06190703,152.34,152.27,2.0849]
[1749427819422,0.04758175,152.32,152.29,7.10336619]
[1749427819620,0.04758175,152.32,152.31,7.06190703]
[1749427819813,41.43435831,152.39,152.31,7.06190703]
[1749427820011,6.5603,152.36,152.32,6.5618]
[1749427820410,35.34,152.39,152.31,7.06190703]
[1749427820613,6.5601,152.36,152.33,6.5614]
[1749427820814,6.60737984,152.36,152.33,6.61162511]
[1749427821224,6.60737984,152.36,152.33,0.05022511]
[1749427821423,6.5606,152.35,152.33,0.05022511]
[1749427821824,0.04727984,152.36,152.33,0.05022511]
[1749427822519,6.60757984,152.36,152.33,6.61152511]
[1749427822918,6.60757984,152.36,152.33,0.05022511]
[1749427823119,0.04727984,152.36,152.33,0.05022511]
[1749427823520,7.10918687,152.36,152.33,0.05022511]
[1749427823720,6.5609,152.34,152.33,0.05022511]
[1749427824627,0.04727984,152.36,152.33,0.05022511]
[1749427825029,6.5609,152.35,152.33,0.05022511]
[1749427825825,6.5609,152.34,152.33,0.05022511]
[1749427828925,6.5606,152.35,152.33,0.05022511]
[1749427829127,0.04727984,152.36,152.33,0.05022511]
[1749427829519,6.5606,152.35,152.33,0.05022511]
[1749427829826,0.04727984,152.36,152.33,0.05022511]
[1749427830022,0.04727984,152.36,152.35,6.5605]
[1749427830224,6.5591,152.39,152.34,7.06190703]
[1749427830425,6.5591,152.39,152.36,7.06190703]
[1749427830925,6.5585,152.4,152.36,7.06190703]
[1749427831230,6.60864199,152.4,152.36,7.1099899]
[1749427831433,6.5589,152.39,152.36,7.1099899]
[1749427831929,6.5589,152.39,152.36,13.6697899]
[1749427832832,6.60864199,152.4,152.37,6.5596]
[1749427833233,0.05014199,152.4,152.36,7.1099899]
[1749427833532,6.559,152.39,152.36,13.6698899]
[1749427833832,0.05014199,152.4,152.36,0.04808287]
[1749427834628,6.559,152.39,152.36,6.60788287]
[1749427834822,0.05014199,152.4,152.36,0.04808287]
[1749427835230,6.5589,152.39,152.36,0.04808287]
[1749427835533,0.05014199,152.4,152.38,7.06190703]
[1749427835730,6.5561,152.46,152.39,35.34]
[1749427835928,6.09435831,152.47,152.42,7.06190703]
[1749427836134,6.09435831,152.49,152.44,7.06190703]
[1749427836326,6.5557,152.47,152.44,7.06190703]
[1749427836527,6.09435831,152.5,152.44,7.06190703]
[1749427836728,0.04303942,152.49,152.45,0.04693432]
[1749427836923,6.59763942,152.49,152.45,0.04693432]
[1749427837625,6.5551,152.48,152.45,0.04693432]
[1749427837831,0.04303942,152.49,152.45,0.04693432]
[1749427838127,6.555,152.48,152.45,0.04693432]
[1749427838532,0.04303942,152.49,152.45,0.04693432]
[1749427838831,6.5558,152.46,152.45,0.04693432]
[1749427839336,7.06190703,152.46,152.37,2.2285]
[1749427839532,7.06190703,152.46,152.38,34.92]
[1749427840234,7.06190703,152.44,152.35,34.92]
[1749427840445,34.96966528,152.43,152.4,4.08e-06]
[1749427840637,7.06190703,152.41,152.4,4.08e-06]
[1749427840936,13.61980703,152.41,152.4,4.08e-06]
[1749427841837,18.94628382,152.41,152.4,4.08e-06]
[1749427843148,11.88437679,152.41,152.4,4.08e-06]
[1749427843431,6.5579,152.41,152.4,4.08e-06]
[1749427844125,11.88437679,152.41,152.4,4.08e-06]
[1749427844935,6.5579,152.41,152.4,4.08e-06]
[1749427845132,11.88437679,152.41,152.4,4.08e-06]
[1749427845430,6.5579,152.41,152.4,4.08e-06]
[1749427845637,11.88437679,152.41,152.4,4.08e-06]
[1749427845832,6.5579,152.41,152.4,4.08e-06]
[1749427846036,11.88437679,152.41,152.4,4.08e-06]
[1749427846238,6.5579,152.41,152.4,4.08e-06]
[1749427846434,11.88437679,152.41,152.4,4.08e-06]
[1749427847435,14.14667679,152.41,152.4,4.08e-06]
[1749427848141,6.5605,152.35,152.32,37.1004]
[1749427848843,7.06190703,152.37,152.28,37.0066]
[1749427849030,12.38838382,152.37,152.31,0.04862877]
[1749427849231,6.5619,152.32,152.31,0.04862877]
[1749427851636,5.36866153,152.34,152.31,0.04862877]
[1749427851837,0.04218474,152.34,152.31,0.04862877]
[1749427852044,0.04218474,152.34,152.32,6.5618]
[1749427852232,0.04218474,152.34,152.32,7.06190703]
[1749427852637,0.04218474,152.34,152.33,6.5614]
[1749427853242,5.30614941,152.38,152.32,46.24220703]
[1749427853639,11.41082712,152.4,152.32,46.24220703]
[1749427853837,5.30614941,152.39,152.32,46.24220703]
[1749427854040,6.5603,152.36,152.32,52.80370703]
[1749427854242,6.6032138,152.36,152.32,52.85313001]
[1749427854546,0.0429138,152.36,152.33,6.561]
[1749427854844,0.0429138,152.36,152.32,46.29163001]
[1749427855246,0.0429138,152.36,152.34,7.06190703]
[1749427856849,0.0429138,152.36,152.34,13.62280703]
[1749427858144,0.0429138,152.36,152.35,6.5605]
[1749427858747,0.0429138,152.36,152.33,13.62300703]
[1749427859043,0.0429138,152.36,152.33,7.06190703]
[1749427859248,0.0429138,152.36,152.34,6.5609]
[1749427860447,0.0429138,152.36,152.33,13.62310703]
[1749427861049,0.0429138,152.36,152.34,6.5609]
[1749427861354,0.0429138,152.36,152.33,7.06190703]
[1749427862455,0.0429138,152.36,152.32,46.29163001]
[1749427863655,0.0429138,152.36,152.32,52.85313001]
[1749427864157,0.0429138,152.36,152.34,7.06190703]
[1749427864559,0.0429138,152.36,152.34,13.62260703]
[1749427864960,0.0429138,152.36,152.32,46.29163001]
[1749427865761,0.0429138,152.36,152.34,6.5606]
[1749427866153,0.0429138,152.36,152.34,7.06190703]
[1749427867459,0.0429138,152.36,152.32,39.22972298]
[1749427868551,0.0429138,152.36,152.33,7.06190703]
[1749427868750,0.0429138,152.36,152.35,7.06190703]
[1749427868960,5.32408273,152.41,152.35,7.06190703]
[1749427869151,5.32408273,152.43,152.36,34.44]
[1749427869354,12.38598976,152.42,152.32,4.2603]
[1749427869554,13.16658474,152.4,152.33,34.44]
[1749427869756,5.32408273,152.39,152.33,34.44]
[1749427869952,6.60997561,152.38,152.35,6.5605]
[1749427870361,0.05037561,152.38,152.34,0.04235988]
[1749427870657,6.5603,152.36,152.34,0.04235988]
[1749427872162,11.88558988,152.37,152.34,6.60315988]
[1749427872365,0.05037561,152.38,152.34,0.04235988]
[1749427873265,0.05037561,152.38,152.35,7.06190703]
[1749427873655,0.05037561,152.38,152.37,6.5597]
[1749427874061,0.05037561,152.38,152.35,7.06190703]
[1749427874257,0.05037561,152.38,152.36,6.5598]
[1749427875069,0.05037561,152.38,152.37,6.5597]
[1749427875270,5.37420928,152.38,152.34,2.18655988]
[1749427875466,0.05037561,152.38,152.34,2.18655988]
[1749427875767,6.60987561,152.38,152.34,2.18655988]
[1749427876161,6.60987561,152.38,152.35,6.5604]
[1749427876362,0.05037561,152.38,152.35,6.5604]
[1749427876565,6.5597,152.37,152.34,2.18655988]
[1749427876767,0.05037561,152.38,152.34,2.18655988]
[1749427876969,0.05037561,152.38,152.34,0.04235988]
[1749427877268,6.5603,152.36,152.34,0.04235988]
[1749427878066,11.88419388,152.37,152.34,6.60315988]
[1749427879270,11.88419388,152.37,152.35,6.5605]
[1749427879466,5.32439388,152.37,152.34,0.04235988]
[1749427879667,0.05037561,152.38,152.34,0.04235988]
[1749427879863,6.60977561,152.38,152.36,6.5598]
[1749427880167,0.05037561,152.38,152.36,6.5598]
[1749427880866,6.11474682,152.43,152.37,41.50190703]
[1749427881061,5.32320004,152.44,152.39,7.06190703]
[1749427881266,5.32320004,152.43,152.41,6.5579]
[1749427882367,5.32320004,152.43,152.4,0.0471259]
[1749427882760,5.32320004,152.42,152.4,0.0471259]
[1749427882968,5.32320004,152.43,152.4,0.0471259]
[1749427883266,5.32320004,152.42,152.4,0.0471259]
[1749427883467,5.32320004,152.43,152.4,0.0471259]
[1749427883666,5.32320004,152.42,152.4,0.0471259]
[1749427883969,6.5578,152.42,152.4,0.0471259]
[1749427884271,11.88100004,152.42,152.4,0.0471259]
[1749427884469,6.5578,152.42,152.4,0.0471259]
[1749427884865,5.32855548,152.41,152.4,0.0471259]
[1749427885067,11.88645548,152.41,152.4,0.0471259]
[1749427886771,11.88645548,152.41,152.34,36.5877]
[1749427886772,5.32855548,152.41,152.34,36.5877]
[1749427887070,5.32855548,152.4,152.34,43.1486]
[1749427887370,6.56,152.37,152.34,43.1486]
[1749427887570,5.32855548,152.38,152.35,6.5605]
[1749427887767,0.04790445,152.37,152.35,6.5605]
[1749427888167,0.04790445,152.37,152.34,43.19563105]
[1749427888470,0.04790445,152.37,152.34,36.63493105]
[1749427888862,0.04790445,152.37,152.35,6.5605]
[1749427889465,0.04790445,152.37,152.34,36.63493105]
[1749427889672,0.04790445,152.37,152.36,6.5601]
[1749427891972,0.04790445,152.37,152.35,6.5603]
[1749427892970,5.38993252,152.37,152.35,6.5603]
[1749427893165,0.04790445,152.37,152.35,6.5603]
[1749427893569,5.38993252,152.37,152.35,6.5603]
[1749427893774,6.60760445,152.37,152.35,6.5603]
[1749427893975,6.60760445,152.37,152.34,41.04803105]
[1749427894878,5.3361657,152.36,152.34,41.04803105]
[1749427895680,5.33841637,152.35,152.34,34.48723105]
[1749427895875,5.33841637,152.35,152.34,0.04723105]
[1749427896365,5.33841637,152.36,152.34,0.04723105]
[1749427896563,5.33841637,152.35,152.34,0.04723105]
[1749427896765,5.33841637,152.35,152.34,6.60793105]
[1749427896969,5.33841637,152.36,152.34,6.60793105]
[1749427897172,5.33841637,152.35,152.34,6.60793105]
[1749427897374,5.33841637,152.36,152.34,6.60793105]
[1749427897574,5.33841637,152.35,152.34,6.60793105]
[1749427897975,11.89851637,152.36,152.34,0.04723105]
[1749427898173,5.33841637,152.35,152.34,0.04723105]
[1749427898369,11.89891637,152.35,152.34,0.04723105]
[1749427898570,5.33841637,152.35,152.27,4.4365]
[1749427898776,5.33841637,152.34,152.28,34.44]
[1749427898971,6.5623,152.31,152.28,34.44]
[1749427899778,6.6098171,152.31,152.28,0.0468371]
[1749427899978,6.5631,152.29,152.28,0.0468371]
[1749427900175,5.33698472,152.29,152.28,0.0468371]
[1749427901379,11.90008472,152.29,152.28,0.0468371]
[1749427901580,6.5631,152.29,152.28,0.0468371]
[1749427901879,11.90008472,152.29,152.28,0.0468371]
[1749427902081,6.5631,152.29,152.28,0.0468371]
[1749427903180,11.89978472,152.3,152.28,0.0468371]
[1749427903881,6.5631,152.29,152.28,0.0468371]
[1749427907582,11.96342102,152.3,152.28,0.0468371]
[1749427907787,5.40062102,152.3,152.28,0.0468371]
[1749427907991,0.0475171,152.31,152.29,4.23302742]
[1749427909387,0.0475171,152.31,152.3,7.04856224]
[1749427909587,0.0475171,152.31,152.3,13.61126224]
[1749427913681,1.71e-05,152.31,152.3,13.61126224]
[1749427914796,1.71e-05,152.31,152.3,27.21982448]
[1749427917001,6.5557,152.47,152.43,6.5571]
[1749427917297,5.40600353,152.46,152.42,7.04856224]
[1749427917497,6.5558,152.46,152.42,47.86576224]
[1749427917701,11.96180353,152.46,152.42,47.86576224]
[1749427917903,5.40600353,152.45,152.42,47.91008981]
[1749427918093,6.60592461,152.46,152.42,47.91008981]
[1749427918296,5.40600353,152.45,152.42,41.35288981]
[1749427918796,6.60592461,152.46,152.42,41.35288981]
[1749427918996,11.96240353,152.45,152.42,41.35288981]
[1749427919203,6.5564,152.45,152.42,41.35288981]
[1749427919395,0.05012461,152.46,152.42,41.35288981]
[1749427920193,6.5571,152.43,152.42,34.30432757]
[1749427920393,18.58875431,152.45,152.36,34.24]
[1749427920599,7.52253381,152.44,152.36,34.24]
[1749427920897,5.41873381,152.43,152.36,34.24]
[1749427921292,0.04731383,152.41,152.38,0.04778715]
[1749427922101,6.5589,152.39,152.38,0.04778715]
[1749427922495,0.04731383,152.41,152.38,0.04778715]
[1749427922688,0.04731383,152.41,152.4,7.04856224]
[1749427922890,7.56170155,152.47,152.4,41.28856224]
[1749427923100,7.56170155,152.47,152.42,7.04856224]
[1749427923301,5.43150155,152.47,152.44,7.04856224]
[1749427923503,5.43150155,152.49,152.44,41.28856224]
[1749427923800,0.04222221,152.48,152.46,7.04856224]
[1749427924902,0.04222221,152.48,152.46,13.60406224]
[1749427925105,0.04222221,152.48,152.46,7.04856224]
[1749427925406,0.04222221,152.48,152.47,6.5554]
[1749427925602,5.42954367,152.54,152.46,7.04856224]
[1749427925799,5.42954367,152.54,152.49,7.04856224]
[1749427925993,5.42954367,152.55,152.49,7.04856224]
[1749427926601,6.5535,152.52,152.5,0.04611446]
[1749427926802,0.04687191,152.54,152.5,0.04611446]
[1749427927801,6.59937191,152.54,152.5,6.59991446]
[1749427928197,0.04687191,152.54,152.51,7.04856224]
[1749427928496,0.04687191,152.54,152.52,40.773]
[1749427928898,0.04687191,152.54,152.5,0.04611446]
[1749427929094,6.5536,152.52,152.5,0.04611446]
[1749427929807,6.5536,152.51,152.5,0.04611446]
[1749427931100,7.04856224,152.52,152.44,411.92]
[1749427931309,34.08,152.53,152.46,7.04856224]
[1749427931807,6.5541,152.5,152.47,6.5551]
[1749427932005,6.60416091,152.5,152.47,6.59889523]
[1749427932916,6.5545,152.49,152.47,0.04379523]
[1749427933209,0.05006091,152.5,152.47,0.04379523]
[1749427934107,6.5549,152.49,152.47,0.04379523]
[1749427934405,0.05006091,152.5,152.47,0.04379523]
[1749427934602,6.5549,152.48,152.47,0.04379523]
[1749427935205,7.09862315,152.5,152.41,34.08]
[1749427935412,2.1579,152.51,152.41,34.08]
[1749427935413,7.04856224,152.48,152.41,34.08]
[1749427935609,7.04856224,152.5,152.41,34.08]
[1749427935910,6.5565,152.45,152.41,40.6376]
[1749427936099,7.04856224,152.5,152.41,40.6376]
[1749427936301,0.04791922,152.47,152.44,0.04372968]
[1749427937111,6.5562,152.45,152.44,0.04372968]
[1749427937811,0.04791922,152.47,152.44,0.04372968]
[1749427938215,6.5561,152.46,152.44,0.04372968]
[1749427939308,6.5562,152.45,152.44,0.04372968]
[1749427939709,0.04791922,152.47,152.44,0.04372968]
[1749427940313,6.5562,152.45,152.44,0.04372968]
[1749427942115,0.04791922,152.47,152.38,40.639]
[1749427942116,6.558,152.41,152.38,40.639]
[1749427942414,6.558,152.41,152.38,34.08]
[1749427943216,6.6073355,152.41,152.38,34.12298792]
[1749427943617,0.0493355,152.41,152.38,34.12298792]
[1749427944919,4.3298,152.49,152.39,7.04856224]
[1749427945107,4.3298,152.49,152.44,6.5564]
[1749427945312,6.5557,152.47,152.44,6.5564]
[1749427945915,6.60217134,152.47,152.44,6.60606248]
[1749427946217,0.04647134,152.47,152.44,0.04966248]
[1749427946720,6.5561,152.46,152.44,0.04966248]
[1749427946913,0.04647134,152.47,152.44,0.04966248]
[1749427947509,6.60207134,152.47,152.44,6.60586248]
[1749427949022,6.5558,152.46,152.44,0.04966248]
[1749427950823,6.5562,152.45,152.44,0.04966248]
[1749427955723,11.96763425,152.45,152.44,0.04966248]
[1749427955923,6.5559,152.46,152.44,0.04966248]
[1749427956323,5.48139727,152.47,152.44,0.04966248]
[1749427956621,5.43492593,152.46,152.44,0.04966248]
[1749427956923,0.04647134,152.47,152.44,0.04966248]
[1749427957219,5.48139727,152.47,152.44,0.04966248]
[1749427957423,5.43492593,152.46,152.44,0.04966248]
[1749427957620,6.12145826,152.53,152.46,7.04856224]
[1749427957821,5.44066259,152.52,152.48,7.04856224]
[1749427958018,5.44066259,152.54,152.5,7.04856224]
[1749427958218,5.44066259,152.53,152.51,6.5536]
[1749427958418,5.44066259,152.52,152.5,41.12856224]
[1749427958727,5.44066259,152.51,152.5,41.12856224]
[1749427959025,5.44066259,152.52,152.5,47.68246224]
[1749427959223,5.44066259,152.51,152.5,47.68246224]
[1749427959419,0.04519252,152.53,152.5,47.68246224]
[1749427959420,5.44066259,152.52,152.5,47.68246224]
[1749427959619,5.44066259,152.51,152.5,47.68246224]
[1749427959822,5.44066259,152.52,152.5,47.68246224]
[1749427960022,5.44066259,152.51,152.5,47.68246224]
[1749427960224,5.44066259,152.52,152.5,47.68246224]
[1749427960425,5.44066259,152.51,152.5,47.68246224]
[1749427960630,5.44066259,152.52,152.5,47.68246224]
[1749427960926,5.44066259,152.51,152.5,47.68246224]
[1749427961125,5.44066259,152.52,152.5,47.68246224]
[1749427961325,5.44066259,152.51,152.5,47.68246224]
[1749427961919,5.44066259,152.52,152.5,47.68246224]
[1749427962120,5.44066259,152.51,152.5,47.68246224]
[1749427962315,5.44066259,152.52,152.5,47.68246224]
[1749427962523,5.44066259,152.51,152.5,47.68246224]
[1749427962725,5.44066259,152.52,152.51,6.5536]
[1749427962935,0.04519252,152.53,152.51,7.04856224]
[1749427963419,5.44066259,152.56,152.51,7.04856224]
[1749427963623,5.45454427,152.58,152.55,7.04856224]
[1749427963821,5.45454427,152.57,152.55,47.48036224]
[1749427964027,5.45454427,152.56,152.55,40.92856224]
[1749427964221,5.45862857,152.59,152.55,33.88]
[1749427964424,5.45862857,152.58,152.55,33.88]
[1749427964624,5.45862857,152.57,152.55,33.93021113]
[1749427964822,5.45862857,152.58,152.55,33.93021113]
[1749427965025,5.45862857,152.57,152.55,33.93021113]
[1749427965324,5.45862857,152.58,152.55,33.93021113]
[1749427965526,12.01002857,152.57,152.55,33.93021113]
[1749427965726,5.45862857,152.56,152.55,33.93021113]
[1749427965927,5.4526268,152.58,152.55,33.93021113]
[1749427966226,5.4526268,152.58,152.55,40.48211113]
[1749427967023,5.4526268,152.58,152.55,33.93021113]
[1749427968019,6.5515,152.56,152.55,33.93021113]
[1749427968729,6.5515,152.56,152.55,0.05021113]
[1749427969124,5.4526268,152.56,152.47,2.2763]
[1749427969326,12.50118904,152.55,152.48,33.88]
[1749427969528,6.5539,152.51,152.48,33.88]
[1749427969724,5.4657896,152.54,152.48,33.88]
[1749427969928,5.4657896,152.53,152.48,33.88]
[1749427970131,6.5539,152.51,152.49,0.0428115]
[1749427970330,0.04951429,152.52,152.49,0.0428115]
[1749427970526,5.46615617,152.51,152.49,0.0428115]
[1749427970730,5.51567046,152.52,152.49,0.0428115]
[1749427971030,0.04951429,152.52,152.49,0.0428115]
[1749427971231,5.51567046,152.52,152.49,0.0428115]
[1749427971535,0.04951429,152.52,152.49,0.0428115]
[1749427971732,6.5541,152.5,152.49,0.0428115]
[1749427972429,12.01995617,152.51,152.49,0.0428115]
[1749427972630,6.5538,152.51,152.49,0.0428115]
[1749427973228,6.5541,152.5,152.49,0.0428115]
[1749427973627,12.00297003,152.51,152.49,0.0428115]
[1749427973829,6.5538,152.51,152.49,0.0428115]
[1749427975535,6.5541,152.5,152.49,0.0428115]
[1749427979033,6.5541,152.5,152.42,4.393]
[1749427979034,12.49762053,152.51,152.42,6.5571]
[1749427979235,7.04856224,152.48,152.4,33.88]
[1749427979430,7.73655829,152.47,152.4,40.4381]
[1749427979635,7.73655829,152.47,152.4,33.88]
[1749427980033,0.04585018,152.45,152.42,0.04306089]
[1749427981442,6.5566,152.44,152.42,0.04306089]
[1749427981638,12.00565829,152.44,152.42,0.04306089]
[1749427982436,6.5566,152.44,152.42,0.04306089]
[1749427983040,6.60215018,152.45,152.42,6.60046089]
[1749427983237,0.04585018,152.45,152.42,0.04306089]
[1749427983543,6.557,152.44,152.42,0.04306089]
[1749427983742,7.04856224,152.44,152.42,0.04306089]
[1749427983940,5.43428336,152.43,152.42,0.04306089]
[1749427984544,6.5571,152.43,152.42,0.04306089]
[1749427985441,0.04585018,152.45,152.42,0.04306089]
[1749427985641,0.04585018,152.45,152.43,7.04856224]
[1749427985837,0.04585018,152.45,152.44,6.5566]
[1749427988852,5.43119817,152.51,152.47,7.04856224]
[1749427989054,5.43119817,152.52,152.47,40.76856224]
[1749427989255,5.43119817,152.54,152.48,6.5547]
[1749427989856,6.5535,152.52,152.49,6.60368242]
[1749427990058,6.5535,152.52,152.49,13.65224466]
[1749427990952,5.47716024,152.53,152.49,0.04918242]
[1749427991145,0.04596207,152.53,152.49,0.04918242]
[1749427991350,5.47716024,152.53,152.49,0.04918242]